fUSD/lending_fUSD_20250826
["ID","MTS","AMOUNT","RATE_DAILY","PERIOD"]
[381409594,1756187475126,-400.0,0.00016712,2]
[381409595,1756187475135,-400.0,0.00016712,2]
[381409596,1756187475144,-1354.95,0.00016712,2]
[381409597,1756187475154,-400.0,0.00016712,2]
[381409598,1756187475164,-1163.52,0.00016712,2]
[381409599,1756187475173,-400.0,0.00016712,2]
[381409600,1756187475183,-1002.56,0.00016712,2]
[381409601,1756187475193,-400.0,0.00016712,2]
[381409602,1756187475204,-1628.22,0.00016712,2]
[381409603,1756187475214,-400.0,0.00016712,2]
[381409604,1756187475226,-400.0,0.00016712,2]
[381409605,1756187475235,-400.0,0.00016712,2]
[381409606,1756187475245,-493.68,0.00016712,2]
[381409607,1756187475255,-400.0,0.00016712,2]
[381409608,1756187475265,-1193.33,0.00016712,2]
[381409609,1756187475275,-7048.35,0.00016712,2]
[381409610,1756187475286,-1293.64,0.00016712,2]
[381409611,1756187475297,-400.0,0.00016712,2]
[381409612,1756187475307,-400.0,0.00016712,2]
[381409613,1756187475318,-400.0,0.00016712,2]
[381409614,1756187475328,-400.0,0.00016712,2]
[381409615,1756187475338,-355.04,0.00016712,2]
[381409616,1756187475347,-151.0,0.00016712,2]
[381409617,1756187475358,-400.0,0.00016712,2]
[381409618,1756187475367,-400.0,0.00016712,2]
[381409619,1756187475376,-175.19,0.00016712,2]
[381409620,1756187475388,-400.0,0.00016712,2]
[381409621,1756187475397,-151.0,0.00016712,2]
[381409622,1756187475408,-400.0,0.00016712,2]
[381409623,1756187475418,-734.28,0.00016712,2]
[381409624,1756187475427,-151.0,0.00016712,2]
[381409625,1756187475437,-1150.62,0.00016712,2]
[381409626,1756187475447,-966.45,0.00016712,2]
[381409627,1756187475456,-400.0,0.00016712,2]
[381409628,1756187475466,-712.26,0.00016712,2]
[381409629,1756187475475,-1129.82,0.00016712,2]
[381409630,1756187475485,-1065.75,0.00016712,2]
[381409631,1756187475495,-745.67,0.00016712,2]
[381409632,1756187475505,-719.16,0.00016712,2]
[381409633,1756187475514,-400.0,0.00016712,2]
[381409634,1756187475524,-151.0,0.00016712,2]
[381409635,1756187475534,-977.62,0.00016712,2]
[381409636,1756187475543,-593.98,0.00016712,2]
[381409637,1756187475553,-400.0,0.00016712,2]
[381409638,1756187475562,-682.16,0.00016712,2]
[381409639,1756187475572,-151.0,0.00016712,2]
[381409640,1756187475581,-400.0,0.00016712,2]
[381409641,1756187475591,-400.0,0.00016712,2]
[381409642,1756187475605,-151.0,0.00016712,2]
[381409643,1756187475615,-151.0,0.00016712,2]
[381409644,1756187475626,-400.0,0.00016712,2]
[381409645,1756187475638,-522.11,0.00016712,2]
[381409646,1756187475648,-151.0,0.00016712,2]
[381409647,1756187475658,-400.0,0.00016712,2]
[381409648,1756187475670,-399.61554049,0.00016712,2]
[381409649,1756187475681,-903.77,0.00016712,2]
[381409650,1756187475692,-671.23,0.00016712,2]
[381409651,1756187475706,-400.0,0.00016712,2]
[381409652,1756187475715,-604.74,0.00016712,2]
[381409653,1756187475725,-1282.34,0.00016712,2]
[381409654,1756187475735,-400.0,0.00016712,2]
[381409655,1756187475744,-400.0,0.00016712,2]
[381409656,1756187475755,-151.0,0.00016712,2]
[381409657,1756187475766,-400.0,0.00016712,2]
[381409658,1756187475775,-559.92,0.00016712,2]
[381409659,1756187475786,-400.0,0.00016712,2]
[381409660,1756187475796,-685.44,0.00016712,2]
[381409661,1756187475805,-502.11,0.00016712,2]
[381409662,1756187475816,-488.96,0.00016712,2]
[381409663,1756187475826,-1300.41,0.00016712,2]
[381409664,1756187475835,-151.0,0.00016712,2]
[381409665,1756187475845,-907.47,0.00016712,2]
[381409666,1756187475854,-614.94,0.00016712,2]
[381409667,1756187475863,-151.0,0.00016712,2]
[381409668,1756187475873,-400.0,0.00016712,2]
[381409669,1756187475883,-400.0,0.00016712,2]
[381409670,1756187475893,-400.0,0.00016712,2]
[381409671,1756187475903,-508.83021619,0.00016712,2]
[381409672,1756187475912,-151.0,0.00016712,2]
[381409673,1756187475922,-780.96,0.00016712,2]
[381409674,1756187475932,-1002.01,0.00016712,2]
[381409675,1756187475942,-840.61,0.00016712,2]
[381409676,1756187475952,-400.0,0.00016712,2]
[381409677,1756187475961,-525.84626222,0.00016712,2]
[381409678,1756187475972,-425.77,0.00016712,2]
[381409679,1756187475983,-151.0,0.00016712,2]
[381409680,1756187475993,-589.71,0.00016712,2]
[381409681,1756187476004,-400.0,0.00016712,2]
[381409682,1756187476014,-400.0,0.00016712,2]
[381409683,1756187476023,-400.0,0.00016712,2]
[381409684,1756187476033,-1458.48,0.00016712,2]
[381409685,1756187476043,-151.0,0.00016712,2]
[381409686,1756187476052,-400.0,0.00016712,2]
[381409687,1756187476063,-522.78,0.00016712,2]
[381409688,1756187476074,-581.34,0.00016712,2]
[381409689,1756187476085,-177.73183,0.00016712,2]
[381409690,1756187476094,-1107.97,0.00016712,2]
[381409691,1756187476104,-1080.95,0.00016712,2]
[381409692,1756187476114,-845.61,0.00016712,2]
[381409693,1756187476123,-151.0,0.00016712,2]
[381409694,1756187476133,-559.63,0.00016712,2]
[381409695,1756187476143,-917.4,0.00016712,2]
[381409696,1756187476152,-151.0,0.00016712,2]
[381409697,1756187476162,-848.81,0.00016712,2]
[381409698,1756187476171,-1020.92,0.00016712,2]
[381409699,1756187476182,-400.0,0.00016712,2]
[381409700,1756187476192,-184.374765,0.00016712,2]
[381409701,1756187476202,-753.28,0.00016712,2]
[381409702,1756187476211,-712.36,0.00016712,2]
[381409703,1756187476221,-471.44,0.00016712,2]
[381409704,1756187476231,-1135.23,0.00016712,2]
[381409705,1756187476241,-994.58,0.00016712,2]
[381409706,1756187476251,-184.374765,0.00016712,2]
[381409707,1756187476261,-483.72,0.00016712,2]
[381409708,1756187476271,-1077.2,0.00016712,2]
[381409709,1756187476281,-184.374765,0.00016712,2]
[381409710,1756187476292,-1412.73,0.00016712,2]
[381409711,1756187476302,-644.9,0.00016712,2]
[381409712,1756187476313,-691.8,0.00016712,2]
[381409713,1756187476323,-620.21,0.00016712,2]
[381409714,1756187476333,-151.587613,0.00016712,2]
[381409715,1756187476343,-184.374765,0.00016712,2]
[381409716,1756187476353,-400.0,0.00016712,2]
[381409717,1756187476363,-400.0,0.00016712,2]
[381409718,1756187476372,-337.798632,0.00016712,2]
[381409719,1756187476382,-400.0,0.00016712,2]
[381409720,1756187476391,-337.798632,0.00016712,2]
[381409721,1756187476400,-400.0,0.00016712,2]
[381409722,1756187476409,-400.0,0.00016712,2]
[381409723,1756187476418,-400.0,0.00016712,2]
[381409724,1756187476428,-400.0,0.00016712,2]
[381409725,1756187476438,-400.0,0.00016712,2]
[381409726,1756187476448,-400.0,0.00016712,2]
[381409727,1756187476458,-705.71,0.00016712,2]
[381409728,1756187476468,-1015.77,0.00016712,2]
[381409729,1756187476478,-1305.09,0.00016712,2]
[381409730,1756187476487,-468.36,0.00016712,2]
[381409731,1756187476498,-444.72,0.00016712,2]
[381409732,1756187476507,-845.91,0.00016712,2]
[381409733,1756187476517,-1337.46,0.00016712,2]
[381409734,1756187476526,-545.77,0.00016712,2]
[381409735,1756187476536,-400.0,0.00016712,2]
[381409736,1756187476546,-400.0,0.00016712,2]
[381409737,1756187476555,-151.0,0.00016712,2]
[381409738,1756187476564,-151.0,0.00016712,2]
[381409739,1756187476574,-880.46,0.00016712,2]
[381409740,1756187476583,-400.0,0.00016712,2]
[381409741,1756187476595,-400.0,0.00016712,2]
[381409742,1756187476605,-629.36,0.00016712,2]
[381409743,1756187476616,-151.0,0.00016712,2]
[381409744,1756187476625,-696.49,0.00016712,2]
[381409745,1756187476635,-1307.64,0.00016712,2]
[381409746,1756187476645,-151.139118,0.00016712,2]
[381409747,1756187476654,-151.0,0.00016712,2]
[381409748,1756187476663,-400.0,0.00016712,2]
[381409749,1756187476672,-400.0,0.00016712,2]
[381409750,1756187476681,-862.96,0.00016712,2]
[381409751,1756187476692,-447.3,0.00016712,2]
[381409752,1756187476701,-698.91,0.00016712,2]
[381409753,1756187476710,-400.0,0.00016712,2]
[381409754,1756187476720,-657.69,0.00016712,2]
[381409755,1756187476729,-622.1,0.00016712,2]
[381409756,1756187476738,-1017.46,0.00016712,2]
[381409757,1756187476747,-400.0,0.00016712,2]
[381409758,1756187476757,-869.42,0.00016712,2]
[381409759,1756187476767,-647.58,0.00016712,2]
[381409760,1756187476776,-539.19,0.00016712,2]
[381409761,1756187476785,-400.0,0.00016712,2]
[381409762,1756187476795,-400.0,0.00016712,2]
[381409763,1756187476804,-1075.5,0.00016712,2]
[381409764,1756187476814,-400.0,0.00016712,2]
[381409765,1756187476823,-400.0,0.00016712,2]
[381409766,1756187476832,-400.0,0.00016712,2]
[381409767,1756187476960,-400.0,0.00016712,2]
[381409768,1756187476970,-400.0,0.00016712,2]
[381409769,1756187476979,-151.0,0.00016712,2]
[381409770,1756187476988,-4618.2,0.00016712,2]
[381409771,1756187476998,-863.32,0.00016712,2]
[381409772,1756187477007,-1505.52,0.00016712,2]
[381409773,1756187477016,-400.0,0.00016712,2]
[381409774,1756187477025,-164.449929,0.00016712,2]
[381409775,1756187477034,-400.0,0.00016712,2]
[381409776,1756187477043,-400.0,0.00016712,2]
[381409777,1756187477052,-400.0,0.00016712,2]
[381409778,1756187477062,-400.0,0.00016712,2]
[381409779,1756187477071,-400.0,0.00016712,2]
[381409780,1756187477080,-400.0,0.00016712,2]
[381409781,1756187477089,-400.63640504,0.00016712,2]
[381409782,1756187477098,-226.883424,0.00016712,2]
[381409783,1756187477107,-400.0,0.00016712,2]
[381409784,1756187477116,-647.78,0.00016712,2]
[381409785,1756187477126,-405.01,0.00016712,2]
[381409786,1756187477135,-436.65,0.00016712,2]
[381409787,1756187477144,-610.36,0.00016712,2]
[381409788,1756187477153,-400.0,0.00016712,2]
[381409789,1756187477163,-1087.43,0.00016712,2]
[381409790,1756187477171,-400.0,0.00016712,2]
[381409791,1756187477180,-400.0,0.00016712,2]
[381409792,1756187477189,-846.95,0.00016712,2]
[381409793,1756187477198,-446.2,0.00016712,2]
[381409794,1756187477207,-400.0,0.00016712,2]
[381409795,1756187477216,-505.61,0.00016712,2]
[381409796,1756187477226,-1767.76,0.00016712,2]
[381409797,1756187477235,-585.97,0.00016712,2]
[381409798,1756187477244,-1380.42,0.00016712,2]
[381409799,1756187477254,-735.71,0.00016712,2]
[381409800,1756187477263,-1739.731729,0.00016712,2]
[381409801,1756187477271,-557.42,0.00016712,2]
[381409802,1756187477281,-400.0,0.00016712,2]
[381409803,1756187477290,-1739.731729,0.00016712,2]
[381409804,1756187477299,-433.81,0.00016712,2]
[381409805,1756187477308,-995.28,0.00016712,2]
[381409806,1756187477317,-368.141097,0.00016712,2]
[381409807,1756187477326,-1739.731729,0.00016712,2]
[381409808,1756187477335,-1761.72,0.00016712,2]
[381409809,1756187477344,-368.141097,0.00016712,2]
[381409810,1756187477353,-1739.731729,0.00016712,2]
[381409811,1756187477362,-459.1,0.00016712,2]
[381409812,1756187477371,-151.0,0.00016712,2]
[381409813,1756187477380,-368.141097,0.00016712,2]
[381409814,1756187477389,-400.0,0.00016712,2]
[381409815,1756187477398,-652.4,0.00016712,2]
[381409816,1756187477407,-151.0,0.00016712,2]
[381409817,1756187477416,-1179.57,0.00016712,2]
[381409818,1756187477425,-663.26,0.00016712,2]
[381409819,1756187477434,-183.38451419,0.00016712,2]
[381409820,1756187477443,-721.15,0.00016712,2]
[381409821,1756187477452,-368.141097,0.00016712,2]
[381409822,1756187477461,-400.0,0.00016712,2]
[381409823,1756187477470,-435.62,0.00016712,2]
[381409824,1756187477479,-765.94,0.00016712,2]
[381409825,1756187477488,-1064.56,0.00016712,2]
[381409826,1756187477497,-1342.44,0.00016712,2]
[381409827,1756187477507,-151.0,0.00016712,2]
[381409828,1756187477516,-1572.36,0.00016712,2]
[381409829,1756187477524,-975.36,0.00016712,2]
[381409830,1756187477533,-848.28,0.00016712,2]
[381409831,1756187477542,-151.0,0.00016712,2]
[381409832,1756187477551,-636.48,0.00016712,2]
[381409833,1756187477560,-151.0,0.00016712,2]
[381409834,1756187477569,-206.510997,0.00016712,2]
[381409835,1756187477578,-151.0,0.00016712,2]
[381409836,1756187477586,-1316.75,0.00016712,2]
[381409837,1756187477597,-151.0,0.00016712,2]
[381409838,1756187477606,-1181.21,0.00016712,2]
[381409839,1756187477615,-217.346054,0.00016712,2]
[381409840,1756187477623,-400.0,0.00016712,2]
[381409841,1756187477632,-151.0,0.00016712,2]
[381409842,1756187477643,-400.0,0.00016712,2]
[381409843,1756187477652,-151.0,0.00016712,2]
[381409844,1756187477661,-217.346054,0.00016712,2]
[381409845,1756187477671,-151.0,0.00016712,2]
[381409846,1756187477680,-151.0,0.00016712,2]
[381409847,1756187477689,-400.0,0.00016712,2]
[381409848,1756187477699,-400.0,0.00016712,2]
[381409849,1756187477708,-573.6,0.00016712,2]
[381409850,1756187477717,-151.0,0.00016712,2]
[381409851,1756187477726,-151.0,0.00016712,2]
[381409852,1756187477735,-151.931186,0.00016712,2]
[381409853,1756187477744,-151.0,0.00016712,2]
[381409854,1756187477753,-400.0,0.00016712,2]
[381409855,1756187477762,-300.0,0.00016712,2]
[381409856,1756187477771,-217.346054,0.00016712,2]
[381409857,1756187477779,-151.0,0.00016712,2]
[381409858,1756187477789,-151.0,0.00016712,2]
[381409859,1756187477799,-217.346054,0.00016712,2]
[381409860,1756187477809,-416.55,0.00016712,2]
[381409861,1756187477820,-400.0,0.00016712,2]
[381409862,1756187477830,-847.69,0.00016712,2]
[381409863,1756187477840,-205.191529,0.00016712,2]
[381409864,1756187477849,-400.0,0.00016712,2]
[381409865,1756187477858,-412.69,0.00016712,2]
[381409866,1756187477867,-529.42,0.00016712,2]
[381409867,1756187477876,-151.0,0.00016712,2]
[381409868,1756187477886,-1089.96,0.00016712,2]
[381409869,1756187477896,-465.3,0.00016712,2]
[381409870,1756187477905,-1070.55,0.00016712,2]
[381409871,1756187477916,-877.92,0.00016712,2]
[381409872,1756187477928,-155.348531,0.00016712,2]
[381409873,1756187477939,-400.0,0.00016712,2]
[381409874,1756187477951,-1241.47,0.00016712,2]
[381409875,1756187477962,-1141.83,0.00016712,2]
[381409876,1756187477972,-507.39,0.00016712,2]
[381409877,1756187477982,-691.3,0.00016712,2]
[381409878,1756187477992,-911.71,0.00016712,2]
[381409879,1756187478001,-596.64,0.00016712,2]
[381409880,1756187478011,-400.0,0.00016712,2]
[381409881,1756187478020,-400.0,0.00016712,2]
[381409882,1756187478029,-400.0,0.00016712,2]
[381409883,1756187478039,-966.54,0.00016712,2]
[381409884,1756187478048,-400.0,0.00016712,2]
[381409885,1756187478058,-668.03,0.00016712,2]
[381409886,1756187478068,-1032.82,0.00016712,2]
[381409887,1756187478079,-683.92,0.00016712,2]
[381409888,1756187478089,-708.23,0.00016712,2]
[381409889,1756187478098,-575.42,0.00016712,2]
[381409890,1756187478107,-486.66,0.00016712,2]
[381409891,1756187478116,-400.0,0.00016712,2]
[381409892,1756187478126,-400.0,0.00016712,2]
[381409893,1756187478135,-876.59,0.00016712,2]
[381409894,1756187478147,-718.26,0.00016712,2]
[381409895,1756187478157,-400.0,0.00016712,2]
[381409896,1756187478167,-400.0,0.00016712,2]
[381409897,1756187478176,-680.05,0.00016712,2]
[381409898,1756187478186,-400.0,0.00016712,2]
[381409899,1756187478195,-1692.55,0.00016712,2]
[381409900,1756187478204,-584.57,0.00016712,2]
[381409901,1756187478214,-1241.85,0.00016712,2]
[381409902,1756187478223,-475.29295885,0.00016712,2]
[381409903,1756187478232,-400.0,0.00016712,2]
[381409904,1756187478241,-831.34,0.00016712,2]
[381409905,1756187478251,-1043.8,0.00016712,2]
[381409906,1756187478261,-400.0,0.00016712,2]
[381409907,1756187478270,-1006.61,0.00016712,2]
[381409908,1756187478279,-1144.57,0.00016712,2]
[381409909,1756187478289,-660.37,0.00016712,2]
[381409910,1756187478299,-1580.64,0.00016712,2]
[381409911,1756187478308,-1498.18,0.00016712,2]
[381409912,1756187478318,-400.0,0.00016712,2]
[381409913,1756187478328,-674.59,0.00016712,2]
[381409914,1756187478337,-571.25,0.00016712,2]
[381409915,1756187478347,-400.0,0.00016712,2]
[381409916,1756187478357,-641.19,0.00016712,2]
[381409917,1756187478366,-1017.63,0.00016712,2]
[381409918,1756187478376,-1266.46,0.00016712,2]
[381409919,1756187478385,-400.0,0.00016712,2]
[381409920,1756187478394,-1019.68,0.00016712,2]
[381409921,1756187478403,-400.0,0.00016712,2]
[381409922,1756187478412,-1100.75,0.00016712,2]
[381409923,1756187478422,-400.0,0.00016712,2]
[381409924,1756187478431,-151.0,0.00016712,2]
[381409925,1756187478441,-400.0,0.00016712,2]
[381409926,1756187478451,-151.0,0.00016712,2]
[381409927,1756187478460,-400.0,0.00016712,2]
[381409928,1756187478471,-400.0,0.00016712,2]
[381409929,1756187478480,-1521.49,0.00016712,2]
[381409930,1756187478489,-400.0,0.00016712,2]
[381409931,1756187478499,-867.81,0.00016712,2]
[381409932,1756187478509,-200.0,0.00016712,2]
[381409933,1756187478519,-400.0,0.00016712,2]
[381409934,1756187478528,-200.0,0.00016712,2]
[381409935,1756187478538,-400.0,0.00016712,2]
[381409936,1756187478547,-400.0,0.00016712,2]
[381409937,1756187478556,-200.0,0.00016712,2]
[381409938,1756187478565,-200.0,0.00016712,2]
[381409939,1756187478575,-200.0,0.00016712,2]
[381409940,1756187478584,-1267.69,0.00016712,2]
[381409941,1756187478595,-1115.24,0.00016712,2]
[381409942,1756187478604,-200.0,0.00016712,2]
[381409943,1756187478614,-400.0,0.00016712,2]
[381409944,1756187478623,-200.0,0.00016712,2]
[381409945,1756187478633,-400.0,0.00016712,2]
[381409946,1756187478643,-997.81,0.00016712,2]
[381409947,1756187478652,-200.0,0.00016712,2]
[381409948,1756187478663,-200.0,0.00016712,2]
[381409949,1756187478673,-200.0,0.00016712,2]
[381409950,1756187478683,-1218.74,0.00016712,2]
[381409951,1756187478692,-200.0,0.00016712,2]
[381409952,1756187478702,-1302.16,0.00016712,2]
[381409953,1756187478711,-400.0,0.00016712,2]
[381409954,1756187478721,-400.0,0.00016712,2]
[381409955,1756187478731,-200.0,0.00016712,2]
[381409956,1756187478750,-200.0,0.00016712,2]
[381409957,1756187478770,-200.0,0.00016712,2]
[381409958,1756187478790,-200.0,0.00016712,2]
[381409959,1756187478809,-695.05,0.00016712,2]
[381409960,1756187478819,-400.0,0.00016712,2]
[381409961,1756187478828,-200.0,0.00016712,2]
[381409962,1756187478837,-400.0,0.00016712,2]
[381409963,1756187478847,-200.0,0.00016712,2]
[381409964,1756187478856,-1512.48,0.00016712,2]
[381409965,1756187478866,-723.78,0.00016712,2]
[381409966,1756187478875,-200.0,0.00016712,2]
[381409967,1756187478884,-200.0,0.00016712,2]
[381409968,1756187478893,-650.13,0.00016712,2]
[381409969,1756187478903,-200.0,0.00016712,2]
[381409970,1756187478912,-200.0,0.00016712,2]
[381409971,1756187478921,-200.0,0.00016712,2]
[381409972,1756187478935,-200.0,0.00016712,2]
[381409973,1756187478944,-200.0,0.00016712,2]
[381409974,1756187478953,-200.0,0.00016712,2]
[381409975,1756187478962,-400.0,0.00016712,2]
[381409976,1756187478971,-200.0,0.00016712,2]
[381409977,1756187478980,-642.61,0.00016712,2]
[381409978,1756187478989,-804.19,0.00016712,2]
[381409979,1756187478998,-200.0,0.00016712,2]
[381409980,1756187479008,-200.0,0.00016712,2]
[381409981,1756187479017,-1191.41,0.00016712,2]
[381409982,1756187479027,-572.82,0.00016712,2]
[381409983,1756187479037,-866.06,0.00016712,2]
[381409984,1756187479046,-400.0,0.00016712,2]
[381409985,1756187479055,-400.0,0.00016712,2]
[381409986,1756187479065,-400.0,0.00016712,2]
[381409987,1756187479074,-760.93,0.00016712,2]
[381409988,1756187479083,-632.76,0.00016712,2]
[381409989,1756187479093,-400.0,0.00016712,2]
[381409990,1756187479103,-945.69,0.00016712,2]
[381409991,1756187479112,-927.96,0.00016712,2]
[381409992,1756187479122,-743.96,0.00016712,2]
[381409993,1756187479131,-400.0,0.00016712,2]
[381409994,1756187479141,-1291.3,0.00016712,2]
[381409995,1756187479151,-667.668985,0.00016712,2]
[381409996,1756187479160,-400.0,0.00016712,2]
[381409997,1756187479169,-2214.08,0.00016712,2]
[381409998,1756187479179,-205.09763371,0.00016712,2]
[381409999,1756187479188,-1469.47,0.00016712,2]
[381410000,1756187479197,-993.05,0.00016712,2]
[381410001,1756187479206,-667.668985,0.00016712,2]
[381410002,1756187479216,-400.0,0.00016712,2]
[381410003,1756187479225,-738.049243,0.00016712,2]
[381410004,1756187479235,-707.11,0.00016712,2]
[381410005,1756187479244,-400.0,0.00016712,2]
[381410006,1756187479255,-205.120032,0.00016712,2]
[381410007,1756187479264,-667.668985,0.00016712,2]
[381410008,1756187479273,-602.68,0.00016712,2]
[381410009,1756187479282,-400.0,0.00016712,2]
[381410010,1756187479292,-738.049243,0.00016712,2]
[381410011,1756187479302,-1395.16,0.00016712,2]
[381410012,1756187479311,-400.0,0.00016712,2]
[381410013,1756187479320,-400.0,0.00016712,2]
[381410014,1756187479330,-791.41,0.00016712,2]
[381410015,1756187479339,-551.41,0.00016712,2]
[381410016,1756187479349,-667.668985,0.00016712,2]
[381410017,1756187479358,-205.120032,0.00016712,2]
[381410018,1756187479368,-738.049243,0.00016712,2]
[381410019,1756187479377,-604.6,0.00016712,2]
[381410020,1756187479386,-698.19,0.00016712,2]
[381410021,1756187479395,-400.0,0.00016712,2]
[381410022,1756187479406,-151.0,0.00016712,2]
[381410023,1756187479417,-205.120032,0.00016712,2]
[381410024,1756187479428,-1041.63,0.00016712,2]
[381410025,1756187479437,-151.0,0.00016712,2]
[381410026,1756187479446,-738.049243,0.00016712,2]
[381410027,1756187479455,-839.24,0.00016712,2]
[381410028,1756187479464,-1212.11,0.00016712,2]
[381410029,1756187479473,-205.120032,0.00016712,2]
[381410030,1756187479483,-237.816137,0.00016712,2]
[381410031,1756187479492,-2542.53,0.00016712,2]
[381410032,1756187479501,-653.06,0.00016712,2]
[381410033,1756187479510,-151.0,0.00016712,2]
[381410034,1756187479520,-897.72,0.00016712,2]
[381410035,1756187479531,-1066.71,0.00016712,2]
[381410036,1756187479541,-947.33,0.00016712,2]
[381410037,1756187479551,-400.0,0.00016712,2]
[381410038,1756187479561,-400.0,0.00016712,2]
[381410039,1756187479571,-959.02,0.00016712,2]
[381410040,1756187479580,-400.0,0.00016712,2]
[381410041,1756187479589,-811.72,0.00016712,2]
[381410042,1756187479602,-1246.02,0.00016712,2]
[381410043,1756187479611,-400.0,0.00016712,2]
[381410044,1756187479620,-687.17,0.00016712,2]
[381410045,1756187479629,-151.0,0.00016712,2]
[381410046,1756187479642,-400.0,0.00016712,2]
[381410047,1756187479651,-400.0,0.00016712,2]
[381410048,1756187479660,-151.0,0.00016712,2]
[381410049,1756187479669,-1231.89,0.00016712,2]
[381410050,1756187479680,-400.0,0.00016712,2]
[381410051,1756187479690,-400.0,0.00016712,2]
[381410052,1756187479700,-400.0,0.00016712,2]
[381410053,1756187479710,-400.0,0.00016712,2]
[381410054,1756187479720,-400.0,0.00016712,2]
[381410055,1756187479732,-587.37,0.00016712,2]
[381410056,1756187479742,-898.63,0.00016712,2]
[381410057,1756187479751,-400.0,0.00016712,2]
[381410058,1756187479761,-195.753321,0.00016712,2]
[381410059,1756187479770,-400.0,0.00016712,2]
[381410060,1756187479779,-151.0,0.00016712,2]
[381410061,1756187479788,-400.0,0.00016712,2]
[381410062,1756187479798,-195.753321,0.00016712,2]
[381410063,1756187479808,-657.36,0.00016712,2]
[381410064,1756187479817,-1162.38,0.00016712,2]
[381410065,1756187479826,-795.95,0.00016712,2]
[381410066,1756187479835,-418.76,0.00016712,2]
[381410067,1756187479844,-195.753321,0.00016712,2]
[381410068,1756187479854,-400.0,0.00016712,2]
[381410069,1756187479863,-524.12613905,0.00016712,2]
[381410070,1756187479871,-400.0,0.00016712,2]
[381410071,1756187479881,-1388.97,0.00016712,2]
[381410072,1756187479890,-195.753321,0.00016712,2]
[381410073,1756187479899,-400.0,0.00016712,2]
[381410074,1756187479908,-655.8,0.00016712,2]
[381410075,1756187479918,-400.0,0.00016712,2]
[381410076,1756187479927,-743.95,0.00016712,2]
[381410077,1756187479937,-2144.98,0.00016712,2]
[381410078,1756187479947,-400.0,0.00016712,2]
[381410079,1756187479958,-447.37,0.00016712,2]
[381410080,1756187479978,-471.34,0.00016712,2]
[381410081,1756187479995,-916.64,0.00016712,2]
[381410082,1756187480004,-400.0,0.00016712,2]
[381410083,1756187480014,-955.988122,0.00016712,2]
[381410084,1756187480023,-457.55,0.00016712,2]
[381410085,1756187480033,-1086.58,0.00016712,2]
[381410086,1756187480043,-400.0,0.00016712,2]
[381410087,1756187480053,-151.0,0.00016712,2]
[381410088,1756187480063,-955.988122,0.00016712,2]
[381410089,1756187480073,-641.73,0.00016712,2]
[381410090,1756187480083,-772.72,0.00016712,2]
[381410091,1756187480093,-1022.04,0.00016712,2]
[381410092,1756187480103,-1137.51,0.00016712,2]
[381410093,1756187480112,-955.988122,0.00016712,2]